{"text_format":"1","workbook":"xlsx","n_sheets":1,"sheets":["Annual"],"not_rendered":{"charts":0,"images":0,"macros":1,"external_links":0,"defined_names":2,"comments":1,"pivot_tables":0},"unopened":[],"bounds":{"document_bytes":16777216,"sheet_cells":100000,"rows_first":2000,"rows_last":500,"rows_between":2000,"halvings":0,"cell_chars":16384,"cell_head_chars":4096},"cells_cut":0,"cells_raw":0,"read":"whole","date_system":"1900"}

{"sheet":"Annual","index":0,"n_rows":295,"n_cols":18,"rows_kept":295,"cut":false,"hidden":false,"merged":[[110,2,110,6],[111,2,111,6],[121,2,121,6],[101,2,101,6],[102,2,102,6],[103,2,103,6],[104,2,104,6],[105,2,105,6],[106,2,106,6],[107,2,107,6],[108,2,108,6],[109,2,109,6],[20,2,20,5],[32,2,32,5],[12,2,12,5],[18,2,18,6],[93,2,93,6],[94,2,94,6],[95,2,95,6],[97,2,97,6],[88,2,88,6],[89,2,89,6],[90,2,90,6],[91,2,91,6],[92,2,92,6],[65,2,65,6],[66,2,66,6],[74,2,74,6],[96,2,96,5],[54,2,54,6],[80,2,80,6],[76,2,76,6],[60,2,60,6],[57,1,57,4],[72,2,72,6],[70,2,70,6],[71,2,71,6],[68,2,68,6],[69,2,69,6],[67,2,67,5],[61,2,61,6],[62,2,62,6],[63,2,63,6],[64,2,64,6],[75,2,75,5],[59,2,59,5],[55,2,55,6],[278,2,278,6],[294,2,294,6],[283,2,283,6],[284,2,284,6],[285,2,285,6],[289,2,289,6],[281,2,281,6],[282,2,282,6],[286,2,286,6],[290,2,290,6],[287,1,287,4],[292,2,292,6],[293,2,293,6],[81,2,81,6],[84,2,84,6],[216,2,216,6],[218,2,218,6],[217,2,217,6],[83,2,83,6],[209,2,209,6],[214,2,214,6],[213,2,213,6],[85,2,85,6],[86,2,86,6],[118,2,118,5],[116,2,116,6],[117,2,117,6],[119,2,119,6],[120,2,120,6],[112,2,112,6],[113,2,113,5],[114,2,114,6],[115,2,115,6],[98,2,98,6],[99,2,99,6],[123,2,123,6],[100,2,100,5],[53,2,53,5],[10,1,10,5],[13,2,13,6],[14,2,14,6],[15,2,15,6],[16,2,16,6],[17,2,17,6],[19,2,19,6],[21,2,21,6],[22,2,22,6],[25,2,25,6],[51,2,51,6],[52,2,52,6],[24,2,24,6],[23,2,23,5],[26,2,26,5],[44,2,44,5],[50,2,50,5],[38,2,38,5],[27,2,27,6],[28,2,28,6],[29,2,29,6],[30,2,30,6],[31,2,31,6],[125,2,125,6],[126,2,126,6],[127,2,127,6],[128,2,128,6],[129,2,129,6],[131,2,131,6],[134,2,134,6],[291,2,291,6],[73,2,73,6],[77,2,77,6],[78,2,78,6],[79,2,79,6],[122,2,122,5],[124,2,124,6],[87,2,87,5],[82,2,82,5],[279,1,279,4],[224,2,224,6],[225,2,225,6],[226,2,226,6],[220,2,220,6],[221,2,221,6],[223,2,223,6],[210,1,210,4],[130,2,130,5],[132,2,132,5],[141,2,141,6],[142,2,142,6],[143,2,143,6],[144,2,144,6],[145,2,145,6],[147,2,147,6],[148,2,148,6],[146,2,146,5],[133,2,133,6],[155,2,155,6],[156,2,156,6],[157,2,157,6],[158,2,158,6],[160,2,160,6],[159,2,159,5],[161,2,161,6],[162,2,162,6],[135,2,135,6],[136,2,136,6],[137,2,137,6],[138,2,138,6],[139,2,139,6],[140,2,140,6],[149,2,149,6],[150,2,150,6],[151,2,151,6],[152,2,152,6],[153,2,153,6],[154,2,154,6],[163,2,163,6],[164,2,164,6],[165,2,165,6],[167,2,167,6],[168,2,168,6],[169,2,169,6],[166,2,166,5],[171,2,171,5],[170,2,170,6],[198,2,198,5],[201,2,201,5],[172,2,172,6],[173,2,173,6],[174,2,174,6],[175,2,175,6],[176,2,176,6],[177,2,177,6],[179,2,179,6],[180,2,180,6],[178,2,178,5],[203,2,203,6],[204,2,204,6],[205,2,205,6],[206,2,206,6],[181,2,181,6],[187,2,187,6],[192,2,192,6],[193,2,193,6],[194,2,194,6],[195,2,195,6],[196,2,196,6],[197,2,197,6],[199,2,199,6],[200,2,200,6],[182,2,182,5],[183,2,183,6],[184,2,184,6],[185,2,185,6],[186,2,186,5],[188,2,188,6],[190,2,190,6],[191,2,191,6],[202,2,202,6],[189,2,189,5],[207,2,207,6],[208,2,208,6],[212,2,212,5],[215,2,215,5],[227,2,227,6],[228,2,228,6],[229,2,229,6],[230,2,230,6],[231,2,231,5],[219,2,219,6],[222,2,222,6],[247,2,247,5],[251,2,251,5],[252,2,252,6],[232,2,232,6],[233,2,233,6],[234,2,234,6],[236,2,236,6],[237,2,237,6],[238,2,238,6],[239,2,239,6],[240,2,240,6],[235,2,235,5],[265,2,265,6],[266,2,266,6],[259,2,259,5],[261,2,261,5],[264,2,264,5],[241,2,241,6],[242,2,242,6],[243,2,243,6],[276,2,276,6],[253,2,253,6],[254,2,254,6],[256,2,256,6],[257,2,257,6],[258,2,258,6],[255,2,255,5],[260,2,260,6],[262,2,262,6],[263,2,263,6],[244,2,244,5],[245,2,245,6],[246,2,246,6],[248,2,248,6],[249,2,249,6],[250,2,250,6],[277,2,277,6],[270,2,270,5],[272,2,272,5],[267,2,267,6],[268,2,268,6],[269,2,269,6],[271,2,271,6],[273,2,273,6],[274,2,274,6],[275,2,275,6],[43,2,43,6],[45,2,45,6],[46,2,46,6],[47,2,47,6],[48,2,48,6],[49,2,49,6],[33,2,33,6],[34,2,34,6],[35,2,35,6],[36,2,36,6],[37,2,37,6],[39,2,39,6],[40,2,40,6],[41,2,41,6],[42,2,42,6]]}
[]
[null,null,null,null,null,null,null,null,null,null,null,null,null,null,null,"Structure"]
[null,null,null,null,null,null,null,null,null,null,null,null,null,null,null,"Option 1"]
[null,null,null,null,null,null,null,null,null,null,null,null,null,null,null,null,null,"All"]
[null,null,null,null,null,null,null,null,null,null,null,null,null,null,null,null,null,"Option 1"]
[null,null,null,null,null,null,null,null,null,null,null,null,null,null,null,null,null,"Option 2"]
[]
[null,null,null,null,null,null,null,null,null,null,null,null,null,"WIP"]
[]
[]
[null,"PROCESS 1",null,null,null,null,null,{"$f":"COUNTIF(H13:H51,\"O\")","v":12}]
[null,null,null,null,null,null,null,null,null,null,null,null,null,null,null,"Notes"]
[null,"-","Task 1",null,null,null,{"$f":"IF(H13>0,H13&\" Outstanding\",\"Completed\")","v":"Completed"},{"$f":"COUNTIF(H14:H20,\"O\")","v":0},"TF",10,{"$f":"IFERROR(VLOOKUP(I13,$K$5:$M$7,3,FALSE),0)","v":0},null,null,null,{"$f":"J13*K13","v":0}]
[null,null,"List 1"]
[null,null,"List 2"]
[null,null,"List 3"]
[null,null,"List 4"]
[null,null,"List 5"]
[null,null,"List 6"]
[null,null,"List 7"]
[null,"-","Task 2",null,null,null,{"$f":"IF(H21>0,H21&\" Outstanding\",\"Complete\")","v":"2 Outstanding"},{"$f":"COUNTIF(H22:H23,\"O\")","v":2},"CSC",10,8.5,null,null,null,{"$f":"J21*K21","v":85}]
[null,null,"List 1",null,null,null,null,"O"]
[null,null,"List 2",null,null,null,null,"O"]
[null,"-","Task 3",null,null,null,{"$f":"IF(H24>0,H24&\" Outstanding\",\"Complete\")","v":"Complete"},{"$f":"COUNTIF(H25:H26,\"O\")","v":0},"TF",null,{"$f":"IFERROR(VLOOKUP(I24,$K$5:$M$7,3,FALSE),0)","v":0},null,null,null,{"$f":"J24*K24","v":0}]
[null,null,"List 1",null,null,null,null,"X"]
[null,null,"List 2",null,null,null,null,"X"]
[null,"-","Task 4",null,null,null,{"$f":"IF(H27>0,H27&\" Outstanding\",\"Complete\")","v":"5 Outstanding"},{"$f":"COUNTIF(H28:H32,\"O\")","v":5},"CS",null,{"$f":"IFERROR(VLOOKUP(I27,$K$5:$M$7,3,FALSE),0)","v":0},null,null,null,{"$f":"J27*K27","v":0}]
[null,null,"List 1",null,null,null,null,"O"]
[null,null,"List 2",null,null,null,null,"O"]
[null,null,"List 3",null,null,null,null,"O"]
[null,null,"List 4",null,null,null,null,"O"]
[null,null,"List 5",null,null,null,null,"O"]
[null,"-","Task 5",null,null,null,{"$f":"IF(H33>0,H33&\" Outstanding\",\"Complete\")","v":"Complete"},{"$f":"COUNTIF(H34:H38,\"O\")","v":0},"CSC",2,8.5,null,null,null,{"$f":"J33*K33","v":17}]
[null,null,"List 1"]
[null,null,"List 2"]
[null,null,"List 3"]
[null,null,"List 4"]
[null,null,"List 5"]
[null,"-","Task 6",null,null,null,{"$f":"IF(H39>0,H39&\" Outstanding\",\"Complete\")","v":"3 Outstanding"},{"$f":"COUNTIF(H40:H44,\"O\")","v":3},null,null,{"$f":"IFERROR(VLOOKUP(I39,$K$5:$M$7,3,FALSE),0)","v":0},null,null,null,{"$f":"J39*K39","v":0}]
[null,null,"List 1",null,null,null,null,"O"]
[null,null,"List 2",null,null,null,null,"O"]
[null,null,"List 3",null,null,null,null,"O"]
[null,null,"List 4",null,null,null,null,"P"]
[null,null,"List 5",null,null,null,null,"X"]
[null,"-","Task 7",null,null,null,{"$f":"IF(H45>0,H45&\" Outstanding\",\"Complete\")","v":"2 Outstanding"},{"$f":"COUNTIF(H46:H50,\"O\")","v":2},null,null,{"$f":"IFERROR(VLOOKUP(I45,$K$5:$M$7,3,FALSE),0)","v":0},null,null,null,{"$f":"J45*K45","v":0}]
[null,null,"List 1",null,null,null,null,"O"]
[null,null,"List 2"]
[null,null,"List 3"]
[null,null,"List 4"]
[null,null,"List 5",null,null,null,null,"O"]
[null,"-","Task 8",null,null,null,{"$f":"IF(H51>0,H51&\" Outstanding\",\"Complete\")","v":"2 Outstanding"},{"$f":"COUNTIF(H52:H54,\"O\")","v":2},null,null,{"$f":"IFERROR(VLOOKUP(I51,$K$5:$M$7,3,FALSE),0)","v":0},null,null,null,{"$f":"J51*K51","v":0}]
[null,null,"List 1",null,null,null,null,"O"]
[null,null,"List 2",null,null,null,null,"O"]
[null,"-","Task 9",null,null,null,{"$f":"IF(H54>0,H54&\" Outstanding\",\"Complete\")","v":"1 Outstanding"},{"$f":"COUNTIF(H55:H56,\"O\")","v":1},null,null,{"$f":"IFERROR(VLOOKUP(I54,$K$5:$M$7,3,FALSE),0)","v":0},null,null,null,{"$f":"J54*K54","v":0}]
[null,null,"List 1",null,null,null,null,"O"]
[null,null,"List 2",null,null,null,null,"P"]
[null,null,null,null,null,null,null,{"$f":"SUM(O13:O57)+H9","v":102}]
[null,"PROCESS 2",null,null,null,null,null,{"$f":"COUNTIF(H60:H210,\"O\")","v":7}]
[null,null,null,null,null,null,null,null,null,null,null,null,null,null,null,"Notes"]
[null,"-","Task 1",null,null,null,{"$f":"IF(H58>0,H58&\" Outstanding\",\"Complete\")","v":"7 Outstanding"},{"$f":"COUNTIF(H61:H65,\"O\")","v":0},null,null,{"$f":"IFERROR(VLOOKUP(I60,$K$5:$M$7,3,FALSE),0)","v":0},null,null,null,{"$f":"J60*K60","v":0}]
[null,null,"List 1",null,null,null,null,"X"]
[null,null,"List 2",null,null,null,null,"X"]
[null,null,"List 3"]
[null,null,"List 4"]
[null,null,"List 5",null,null,null,null,null,null,null,null,null,null,null,null,"Option 1"]
[null,null,"List 6",null,null,null,null,null,null,null,null,null,null,null,null,"Option 2"]
[null,null,"List 7"]
[null,"-","Task 2",null,null,null,{"$f":"IF(H68>0,H68&\" Outstanding\",\"Complete\")","v":"2 Outstanding"},{"$f":"COUNTIF(H69:H75,\"O\")","v":2},null,null,{"$f":"IFERROR(VLOOKUP(I68,$K$5:$M$7,3,FALSE),0)","v":0},null,null,null,{"$f":"J68*K68","v":0}]
[null,null,"List 1",null,null,null,null,"P",null,null,null,null,null,null,0]
[null,null,"List 2",null,null,null,null,"P",null,null,null,null,null,null,0]
[null,null,"List 3",null,null,null,null,"O",null,null,null,null,null,null,0]
[null,null,"List 4",null,null,null,null,"X",null,null,null,null,null,null,0]
[null,null,"List 5",null,null,null,null,"X",null,null,null,null,null,null,0]
[null,null,"List 6",null,null,null,null,"X",null,null,null,null,null,null,0]
[null,null,"List 7",null,null,null,null,"O",null,null,null,null,null,null,null,"Option 2"]
[null,"-","Task 3",null,null,null,{"$f":"IF(H76>0,H76&\" Outstanding\",\"Complete\")","v":"Complete"},{"$f":"COUNTIF(H77:H82,\"O\")","v":0},null,null,{"$f":"IFERROR(VLOOKUP(I76,$K$5:$M$7,3,FALSE),0)","v":0},null,null,null,{"$f":"J76*K76","v":0}]
[null,null,"List 1",null,null,null,null,"X",null,null,null,null,null,null,0]
[null,null,"List 2",null,null,null,null,"X",null,null,null,null,null,null,0]
[null,null,"List 3",null,null,null,null,"X",null,null,null,null,null,null,0]
[null,null,"List 4",null,null,null,null,"P",null,null,null,null,null,null,0]
[null,null,"List 5",null,null,null,null,"P",null,null,null,null,null,null,0]
[null,null,"List 6",null,null,null,null,"P",null,null,null,null,null,null,0]
[null,"-","Task 4",null,null,null,{"$f":"IF(H83>0,H83&\" Outstanding\",\"Complete\")","v":"Complete"},{"$f":"COUNTIF(H84:H87,\"O\")","v":0},null,null,0,null,null,null,0]
[null,null,"List 1",null,null,null,null,"X"]
[null,null,"List 2",null,null,null,null,"X"]
[null,null,"List 3",null,null,null,null,"X"]
[null,null,"List 4",null,null,null,null,"X"]
[null,"-","Task 5",null,null,null,{"$f":"IF(H88>0,H88&\" Outstanding\",\"Complete\")","v":"1 Outstanding"},{"$f":"COUNTIF(H89:H96,\"O\")","v":1},null,null,{"$f":"IFERROR(VLOOKUP(I88,$K$5:$M$7,3,FALSE),0)","v":0},null,null,null,{"$f":"J88*K88","v":0}]
[null,null,"List 1",null,null,null,null,"O",null,null,null,null,null,null,0]
[null,null,"List 2",null,null,null,null,"X",null,null,null,null,null,null,0]
[null,null,"List 3",null,null,null,null,null,null,null,null,null,null,null,0]
[null,null,"List 4",null,null,null,null,null,null,null,null,null,null,null,0]
[null,null,"List 5",null,null,null,null,null,null,null,null,null,null,null,0]
[null,null,"List 6",null,null,null,null,null,null,null,null,null,null,null,0]
[null,null,"List 7",null,null,null,null,null,null,null,null,null,null,null,0]
[null,null,"List 8",null,null,null,null,null,null,null,null,null,null,null,0]
[null,"-","Task 6",null,null,null,{"$f":"IF(H97>0,H97&\" Outstanding\",\"Complete\")","v":"Complete"},{"$f":"COUNTIF(H98:H100,\"O\")","v":0},null,null,{"$f":"IFERROR(VLOOKUP(I97,$K$5:$M$7,3,FALSE),0)","v":0},null,null,null,0]
[null,null,"List 1",null,null,null,null,"X",null,null,null,null,null,null,0]
[null,null,"List 2",null,null,null,null,"X",null,null,null,null,null,null,0]
[null,null,"List 3",null,null,null,null,"X",null,null,null,null,null,null,0]
[null,"-","Task 7",null,null,null,{"$f":"IF(H101>0,H101&\" Outstanding\",\"Complete\")","v":"1 Outstanding"},{"$f":"COUNTIF(H102:H113,\"O\")","v":1},null,null,{"$f":"IFERROR(VLOOKUP(I101,$K$5:$M$7,3,FALSE),0)","v":0},null,null,null,0]
[null,null,"List 1",null,null,null,null,"X",null,null,null,null,null,null,0]
[null,null,"List 2",null,null,null,null,"X",null,null,null,null,null,null,0]
[null,null,"List 3",null,null,null,null,null,null,null,null,null,null,null,0]
[null,null,"List 4",null,null,null,null,null,null,null,null,null,null,null,0]
[null,null,"List 5",null,null,null,null,null,null,null,null,null,null,null,0]
[null,null,"List 6",null,null,null,null,null,null,null,null,null,null,null,0]
[null,null,"List 7",null,null,null,null,null,null,null,null,null,null,null,0]
[null,null,"List 8",null,null,null,null,null,null,null,null,null,null,null,0]
[null,null,"List 9",null,null,null,null,null,null,null,null,null,null,null,0]
[null,null,"List 10",null,null,null,null,"O",null,null,null,null,null,null,0]
[null,null,"List 11",null,null,null,null,null,null,null,null,null,null,null,0]
[null,null,"List 12",null,null,null,null,"P",null,null,null,null,null,null,0]
[null,"-","Task 8",null,null,null,{"$f":"IF(H114>0,H114&\" Outstanding\",\"Complete\")","v":"17 Outstanding"},{"$f":"COUNTIF(H122:H1254,\"O\")","v":17},null,null,{"$f":"IFERROR(VLOOKUP(I114,$K$5:$M$7,3,FALSE),0)","v":0},null,null,null,0]
[null,null,"List 1",null,null,null,null,null,null,null,null,null,null,null,0]
[null,null,"List 2",null,null,null,null,null,null,null,null,null,null,null,0]
[null,null,"List 3",null,null,null,null,null,null,null,null,null,null,null,0]
[null,null,"List 4",null,null,null,null,null,null,null,null,null,null,null,0]
[null,"-","Task 9",null,null,null,{"$f":"IF(H119>0,H119&\" Outstanding\",\"Complete\")","v":"14 Outstanding"},{"$f":"COUNTIF(H212:H1259,\"O\")","v":14},null,null,{"$f":"IFERROR(VLOOKUP(I119,$K$5:$M$7,3,FALSE),0)","v":0},null,null,null,0]
[null,null,"List 1",null,null,null,null,null,null,null,null,null,null,null,{"$f":"J120*K120","v":0}]
[null,null,"List 2",null,null,null,null,null,null,null,null,null,null,null,0]
[null,null,"List 3",null,null,null,null,null,null,null,null,null,null,null,0]
[null,"-","Task 10",null,null,null,{"$f":"IF(H123>0,H123&\" Outstanding\",\"Complete\")","v":"Complete"},{"$f":"COUNTIF(H124:H130,\"O\")","v":0},null,null,{"$f":"IFERROR(VLOOKUP(I123,$K$5:$M$7,3,FALSE),0)","v":0},null,null,null,0]
[null,null,"List 1",null,null,null,null,"X",null,null,null,null,null,null,0]
[null,null,"List 2",null,null,null,null,null,null,null,null,null,null,null,0]
[null,null,"List 3",null,null,null,null,null,null,null,null,null,null,null,0]
[null,null,"List 4",null,null,null,null,null,null,null,null,null,null,null,0]
[null,null,"List 5",null,null,null,null,null,null,null,null,null,null,null,0]
[null,null,"List 6",null,null,null,null,null,null,null,null,null,null,null,0]
[null,null,"List 7",null,null,null,null,null,null,null,null,null,null,null,0]
[null,"-","Task 11",null,null,null,{"$f":"IF(H131>0,H131&\" Outstanding\",\"Complete\")","v":"1 Outstanding"},{"$f":"COUNTIF(H132,\"O\")","v":1},null,null,{"$f":"IFERROR(VLOOKUP(I131,$K$5:$M$7,3,FALSE),0)","v":0},null,null,null,0]
[null,null,"List 1",null,null,null,null,"O",null,null,null,null,null,null,0]
[null,"-","Task 12",null,null,null,{"$f":"IF(H133>0,H133&\" Outstanding\",\"Complete\")","v":"1 Outstanding"},{"$f":"COUNTIF(H135:H146,\"O\")","v":1},null,null,null,null,null,null,0]
[null,null,"List 1",null,null,null,null,null,null,null,null,null,null,null,null,"Option 2"]
[null,null,"List 2",null,null,null,null,"O",null,null,null,null,null,null,0]
[null,null,"If No:",null,null,null,null,null,null,null,null,null,null,null,0]
[null,null,"List 3",null,null,null,null,"P",null,null,null,null,null,null,0]
[null,null,"List 4",null,null,null,null,"X",null,null,null,null,null,null,0]
[null,null,"List 5",null,null,null,null,"X",null,null,null,null,null,null,0]
[null,null,"List 6",null,null,null,null,"X",null,null,null,null,null,null,0]
[null,null,"List 7",null,null,null,null,null,null,null,null,null,null,null,0]
[null,null,"List 8",null,null,null,null,null,null,null,null,null,null,null,0]
[null,null,"List 9",null,null,null,null,null,null,null,null,null,null,null,0]
[null,null,"List 10",null,null,null,null,null,null,null,null,null,null,null,0]
[null,null,"List 11",null,null,null,null,null,null,null,null,null,null,null,0]
[null,null,"List 12",null,null,null,null,null,null,null,null,null,null,null,0]
[null,"-","Task 13",null,null,null,{"$f":"IF(H147>0,H147&\" Outstanding\",\"Complete\")","v":"1 Outstanding"},{"$f":"COUNTIF(H148:H159,\"O\")","v":1},null,null,{"$f":"IFERROR(VLOOKUP(I147,$K$5:$M$7,3,FALSE),0)","v":0},null,null,null,0]
[null,null,"List 1",null,null,null,null,"O",null,null,null,null,null,null,0]
[null,null,"List 2",null,null,null,null,null,null,null,null,null,null,null,0]
[null,null,"List 3",null,null,null,null,null,null,null,null,null,null,null,0]
[null,null,"List 4",null,null,null,null,null,null,null,null,null,null,null,0]
[null,null,"List 5",null,null,null,null,null,null,null,null,null,null,null,0]
[null,null,"List 6",null,null,null,null,null,null,null,null,null,null,null,{"$f":"J153*K153","v":0}]
[null,null,"List 7",null,null,null,null,null,null,null,null,null,null,null,0]
[null,null,"List 8",null,null,null,null,null,null,null,null,null,null,null,0]
[null,null,"List 9",null,null,null,null,null,null,null,null,null,null,null,0]
[null,null,"List 10",null,null,null,null,null,null,null,null,null,null,null,0]
[null,null,"List 11",null,null,null,null,null,null,null,null,null,null,null,0]
[null,null,"List 12",null,null,null,null,null,null,null,null,null,null,null,0]
[null,"-","Task 14",null,null,null,{"$f":"IF(H160>0,H160&\" Outstanding\",\"Complete\")","v":"Complete"},{"$f":"COUNTIF(H161:H166,\"O\")","v":0},null,null,{"$f":"IFERROR(VLOOKUP(I160,$K$5:$M$7,3,FALSE),0)","v":0},null,null,null,0]
[null,null,"List 1",null,null,null,null,"X",null,null,null,null,null,null,0]
[null,null,"List 2",null,null,null,null,null,null,null,null,null,null,null,0]
[null,null,"List 3",null,null,null,null,null,null,null,null,null,null,null,0]
[null,null,"List 4",null,null,null,null,null,null,null,null,null,null,null,0]
[null,null,"List 5",null,null,null,null,null,null,null,null,null,null,null,0]
[null,null,"List 6",null,null,null,null,null,null,null,null,null,null,null,0]
[null,"-","Task 15",null,null,null,{"$f":"IF(H167>0,H167&\" Outstanding\",\"Complete\")","v":"Complete"},{"$f":"COUNTIF(H168:H171,\"O\")","v":0},null,null,{"$f":"IFERROR(VLOOKUP(I167,$K$5:$M$7,3,FALSE),0)","v":0},null,null,null,0]
[null,null,"List 1",null,null,null,null,"X",null,null,null,null,null,null,0,"Option 1"]
[null,null,"List 2",null,null,null,null,"X",null,null,null,null,null,null,0,"Option 1"]
[null,null,"List 3",null,null,null,null,null,null,null,null,null,null,null,0,"Option 1"]
[null,null,"List 4",null,null,null,null,null,null,null,null,null,null,null,0,"Option 2"]
[null,"-","Task 16",null,null,null,{"$f":"IF(H172>0,H172&\" Outstanding\",\"Complete\")","v":"Complete"},{"$f":"COUNTIF(H173:H178,\"O\")","v":0},null,null,{"$f":"IFERROR(VLOOKUP(I172,$K$5:$M$7,3,FALSE),0)","v":0},null,null,null,0]
[null,null,"List 1",null,null,null,null,null,null,null,null,null,null,null,0,"Option 2"]
[null,null,"List 2",null,null,null,null,null,null,null,null,null,null,null,0,"Option 2"]
[null,null,"List 3",null,null,null,null,null,null,null,null,null,null,null,0,"Option 2"]
[null,null,"List 4",null,null,null,null,null,null,null,null,null,null,null,0,"Option 2"]
[null,null,"List 5",null,null,null,null,null,null,null,null,null,null,null,0,"Option 2"]
[null,null,"List 6",null,null,null,null,null,null,null,null,null,null,null,0,"Option 2"]
[null,"-","Task 17",null,null,null,{"$f":"IF(H179>0,H179&\" Outstanding\",\"Complete\")","v":"Complete"},{"$f":"COUNTIF(H180:H182,\"O\")","v":0},null,null,{"$f":"IFERROR(VLOOKUP(I179,$K$5:$M$7,3,FALSE),0)","v":0},null,null,null,0]
[null,null,"List 1",null,null,null,null,"X",null,null,null,null,null,null,0]
[null,null,"List 2",null,null,null,null,null,null,null,null,null,null,null,0]
[null,null,"List 3",null,null,null,null,null,null,null,null,null,null,null,0]
[null,"-","Task 18",null,null,null,{"$f":"IF(H183>0,H183&\" Outstanding\",\"Complete\")","v":"Complete"},{"$f":"COUNTIF(H184:H186,\"O\")","v":0},null,null,{"$f":"IFERROR(VLOOKUP(I183,$K$5:$M$7,3,FALSE),0)","v":0},null,null,null,0]
[null,null,"List 1",null,null,null,null,null,null,null,null,null,null,null,0]
[null,null,"List 2",null,null,null,null,null,null,null,null,null,null,null,{"$f":"J185*K185","v":0}]
[null,null,"List 3",null,null,null,null,null,null,null,null,null,null,null,0]
[null,"-","Task 19",null,null,null,{"$f":"IF(H187>0,H187&\" Outstanding\",\"Complete\")","v":"Complete"},{"$f":"COUNTIF(H188:H189,\"O\")","v":0},null,null,{"$f":"IFERROR(VLOOKUP(I187,$K$5:$M$7,3,FALSE),0)","v":0},null,null,null,0]
[null,null,"List 1",null,null,null,null,null,null,null,null,null,null,null,0]
[null,null,"List 2",null,null,null,null,null,null,null,null,null,null,null,0]
[null,"-","Task 20",null,null,null,{"$f":"IF(H190>0,H190&\" Outstanding\",\"Complete\")","v":"Complete"},{"$f":"COUNTIF(H191:H198,\"O\")","v":0},null,null,{"$f":"IFERROR(VLOOKUP(I190,$K$5:$M$7,3,FALSE),0)","v":0},null,null,null,0]
[null,null,"List 1",null,null,null,null,null,null,null,null,null,null,null,0]
[null,null,"List 2",null,null,null,null,null,null,null,null,null,null,null,0]
[null,null,"List 3",null,null,null,null,null,null,null,null,null,null,null,0]
[null,null,"List 4",null,null,null,null,null,null,null,null,null,null,null,0]
[null,null,"List 5",null,null,null,null,null,null,null,null,null,null,null,0]
[null,null,"List 6",null,null,null,null,null,null,null,null,null,null,null,0]
[null,null,"List 7",null,null,null,null,null,null,null,null,null,null,null,0,"Option 1"]
[null,null,"List 8",null,null,null,null,null,null,null,null,null,null,null,0]
[null,"-","Task 21",null,null,null,{"$f":"IF(H199>0,H199&\" Outstanding\",\"Complete\")","v":"Complete"},{"$f":"COUNTIF(H200:H201,\"O\")","v":0},null,null,{"$f":"IFERROR(VLOOKUP(I199,$K$5:$M$7,3,FALSE),0)","v":0},null,null,null,0]
[null,null,"List 1",null,null,null,null,null,null,null,null,null,null,null,0]
[null,null,"List 2",null,null,null,null,null,null,null,null,null,null,null,0]
[null,"-","Task 22",null,null,null,{"$f":"IF(H202>0,H202&\" Outstanding\",\"Complete\")","v":"Complete"},{"$f":"COUNTIF(H203:H209,\"O\")","v":0},null,null,{"$f":"IFERROR(VLOOKUP(I202,$K$5:$M$7,3,FALSE),0)","v":0},null,null,null,0]
[null,null,"List 1",null,null,null,null,"P",null,null,null,null,null,null,0]
[null,null,"List 2",null,null,null,null,"P",null,null,null,null,null,null,0]
[null,null,"List 3",null,null,null,null,"X",null,null,null,null,null,null,0]
[null,null,"List 4",null,null,null,null,null,null,null,null,null,null,null,0]
[null,null,"List 5",null,null,null,null,null,null,null,null,null,null,null,0]
[null,null,"List 6",null,null,null,null,null,null,null,null,null,null,null,0]
[null,null,"List 7",null,null,null,null,null,null,null,null,null,null,null,0]
[null,null,null,null,null,null,null,{"$f":"SUM(O60:O210)+H54","v":1},null,null,null,null,null,null,0]
[null,"PROCESS 3"]
[null,null,null,null,null,null,null,null,null,null,null,null,null,null,null,"Notes"]
[null,"-","Task 1",null,null,null,{"$f":"IF(H213>0,H213&\" Outstanding\",\"Complete\")","v":"1 Outstanding"},{"$f":"COUNTIF(H214:H215,\"O\")","v":1},null,null,{"$f":"IFERROR(VLOOKUP(I213,$K$5:$M$7,3,FALSE),0)","v":0},null,null,null,{"$f":"J213*K213","v":0}]
[null,null,"List 1",null,null,null,null,"X",null,null,null,null,null,null,0]
[null,null,"List 2",null,null,null,null,"O",null,null,null,null,null,null,0]
[null,"-","Task 2",null,null,null,{"$f":"IF(H216>0,H216&\" Outstanding\",\"Complete\")","v":"5 Outstanding"},{"$f":"COUNTIF(H217:H231,\"O\")","v":5},null,null,{"$f":"IFERROR(VLOOKUP(I216,$K$5:$M$7,3,FALSE),0)","v":0},null,null,null,0]
[null,null,"List 1",null,null,null,null,"O",null,null,null,null,null,null,0,"Option 1"]
[null,null,"If No:",null,null,null,null,null,null,null,null,null,null,null,0,"Option 1"]
[null,null,"List 2",null,null,null,null,"O",null,null,null,null,null,null,0,"Option 1"]
[null,null,"If Yes:",null,null,null,null,"P",null,null,null,null,null,null,0,"Option 1"]
[null,null,"List 3",null,null,null,null,"O",null,null,null,null,null,null,0,"Option 1"]
[null,null,"List 4",null,null,null,null,"O",null,null,null,null,null,null,0,"Option 1"]
[null,null,"List 5",null,null,null,null,"O",null,null,null,null,null,null,0,"Option 1"]
[null,null,"List 6",null,null,null,null,null,null,null,null,null,null,null,0,"Option 1"]
[null,null,"List 7",null,null,null,null,null,null,null,null,null,null,null,0,"Option 1"]
[null,null,"List 8",null,null,null,null,null,null,null,null,null,null,null,0,"Option 1"]
[null,null,"List 9",null,null,null,null,null,null,null,null,null,null,null,0,"Option 1"]
[null,null,"List 10",null,null,null,null,null,null,null,null,null,null,null,null,"Option 1"]
[null,null,"List 11",null,null,null,null,null,null,null,null,null,null,null,null,"Option 1"]
[null,null,"List 12",null,null,null,null,null,null,null,null,null,null,null,null,"Option 1"]
[null,null,"List 13",null,null,null,null,null,null,null,null,null,null,null,null,"Option 1"]
[null,"-","Task 3",null,null,null,{"$f":"IF(H232>0,H232&\" Outstanding\",\"Complete\")","v":"Complete"},{"$f":"COUNTIF(H233:H235,\"O\")","v":0},null,null,{"$f":"IFERROR(VLOOKUP(I232,$K$5:$M$7,3,FALSE),0)","v":0},null,null,null,{"$f":"J232*K232","v":0}]
[null,null,"List 1",null,null,null,null,"P",null,null,null,null,null,null,null,"Option 1"]
[null,null,"List 2",null,null,null,null,"P",null,null,null,null,null,null,null,"Option 1"]
[null,null,"List 3",null,null,null,null,"P",null,null,null,null,null,null,null,"Option 1"]
[null,"-","Task 4",null,null,null,{"$f":"IF(H236>0,H236&\" Outstanding\",\"Complete\")","v":"Complete"},{"$f":"COUNTIF(H237:H244,\"O\")","v":0},null,null,{"$f":"IFERROR(VLOOKUP(I236,$K$5:$M$7,3,FALSE),0)","v":0},null,null,null,{"$f":"J236*K236","v":0}]
[null,null,"List 1",null,null,null,null,"X"]
[null,null,"List 2"]
[null,null,"List 3",null,null,null,null,null,null,null,null,null,null,null,null,"Option 1"]
[null,null,"List 4",null,null,null,null,null,null,null,null,null,null,null,null,"Option 1"]
[null,null,"List 5",null,null,null,null,null,null,null,null,null,null,null,null,"Option 1"]
[null,null,"List 6",null,null,null,null,null,null,null,null,null,null,null,null,"Option 1"]
[null,null,"List 7"]
[null,null,"List 8",null,null,null,null,null,null,null,null,null,null,null,null,"Option 2"]
[null,"-","Task 5",null,null,null,{"$f":"IF(H245>0,H245&\" Outstanding\",\"Complete\")","v":"1 Outstanding"},{"$f":"COUNTIF(H246:H247,\"O\")","v":1},null,null,{"$f":"IFERROR(VLOOKUP(I245,$K$5:$M$7,3,FALSE),0)","v":0},null,null,null,{"$f":"J245*K245","v":0}]
[null,null,"List 1",null,null,null,null,"O",null,null,null,null,null,null,null,"Option 2"]
[null,null,"List 2",null,null,null,null,null,null,null,null,null,null,null,null,"Option 1"]
[null,"-","Task 6",null,null,null,{"$f":"IF(H248>0,H248&\" Outstanding\",\"Complete\")","v":"Complete"},{"$f":"COUNTIF(H249:H251,\"O\")","v":0},null,null,{"$f":"IFERROR(VLOOKUP(I248,$K$5:$M$7,3,FALSE),0)","v":0},null,null,null,{"$f":"J248*K248","v":0}]
[null,null,"List 1"]
[null,null,"List 2"]
[null,null,"List 3"]
[null,"-","Task 7",null,null,null,{"$f":"IF(H252>0,H252&\" Outstanding\",\"Complete\")","v":"Complete"},{"$f":"COUNTIF(H253:H255,\"O\")","v":0},null,null,{"$f":"IFERROR(VLOOKUP(I252,$K$5:$M$7,3,FALSE),0)","v":0},null,null,null,{"$f":"J252*K252","v":0}]
[null,null,"List 1",null,null,null,null,"X"]
[null,null,"List 2",null,null,null,null,"X"]
[null,null,"List 3"]
[null,"-","Task 8",null,null,null,{"$f":"IF(H256>0,H256&\" Outstanding\",\"Complete\")","v":"2 Outstanding"},{"$f":"COUNTIF(H257:H259,\"O\")","v":2},null,null,{"$f":"IFERROR(VLOOKUP(I256,$K$5:$M$7,3,FALSE),0)","v":0},null,null,null,{"$f":"J256*K256","v":0}]
[null,null,"List 1",null,null,null,null,"O",null,null,null,null,null,null,null,"Option 2"]
[null,null,"List 2",null,null,null,null,"O",null,null,null,null,null,null,null,"Option 2"]
[null,null,"List 3",null,null,null,null,null,null,null,null,null,null,null,null,"Option 2"]
[null,"-","Task 9",null,null,null,{"$f":"IF(H260>0,H260&\" Outstanding\",\"Complete\")","v":"Complete"},{"$f":"COUNTIF(H261,\"O\")","v":0},null,null,{"$f":"IFERROR(VLOOKUP(I260,$K$5:$M$7,3,FALSE),0)","v":0},null,null,null,{"$f":"J260*K260","v":0}]
[null,null,"List 1",null,null,null,null,"X"]
[null,"-","Task 10",null,null,null,{"$f":"IF(H262>0,H262&\" Outstanding\",\"Complete\")","v":"1 Outstanding"},{"$f":"COUNTIF(H263:H264,\"O\")","v":1},null,null,{"$f":"IFERROR(VLOOKUP(I262,$K$5:$M$7,3,FALSE),0)","v":0},null,null,null,{"$f":"J262*K262","v":0}]
[null,null,"List 1",null,null,null,null,"O",null,null,null,null,null,null,null,"Option 2"]
[null,null,"List 2",null,null,null,null,null,null,null,null,null,null,null,null,"Option 1"]
[null,"-","Task 11",null,null,null,{"$f":"IF(H265>0,H265&\" Outstanding\",\"Complete\")","v":"Complete"},{"$f":"COUNTIF(H266:H270,\"O\")","v":0},null,null,{"$f":"IFERROR(VLOOKUP(I265,$K$5:$M$7,3,FALSE),0)","v":0},null,null,null,{"$f":"J265*K265","v":0}]
[null,null,"List 1",null,null,null,null,"X"]
[null,null,"List 2",null,null,null,null,"X"]
[null,null,"List 3"]
[null,null,"List 4"]
[null,null,"List 5"]
[null,"-","Task 12",null,null,null,{"$f":"IF(H271>0,H271&\" Outstanding\",\"Complete\")","v":"1 Outstanding"},{"$f":"COUNTIF(H272,\"O\")","v":1},null,null,{"$f":"IFERROR(VLOOKUP(I271,$K$5:$M$7,3,FALSE),0)","v":0},null,null,null,{"$f":"J271*K271","v":0}]
[null,null,"List 1",null,null,null,null,"O"]
[null,"-","Task 13",null,null,null,{"$f":"IF(H273>0,H273&\" Outstanding\",\"Complete\")","v":"1 Outstanding"},{"$f":"COUNTIF(H274:H278,\"O\")","v":1},null,null,{"$f":"IFERROR(VLOOKUP(I273,$K$5:$M$7,3,FALSE),0)","v":0},null,null,null,{"$f":"J273*K273","v":0}]
[null,null,"List 1",null,null,null,null,"X"]
[null,null,"List 2",null,null,null,null,"O",null,null,null,null,null,null,null,"Option 1"]
[null,null,"List 3",null,null,null,null,"X"]
[null,null,"List 4",null,null,null,null,"X"]
[null,null,"List 5"]
[null,null,null,null,null,null,null,{"$f":"SUM(O213:O279)+H210","v":1},null,null,null,null,null,null,{"$f":"J279*K279","v":0}]
[null,"PROCESS 4"]
[null,null,null,null,null,null,null,null,null,null,null,null,null,null,null,"Notes"]
[null,null,"TASK 1",null,null,null,null,"O",null,null,{"$f":"IFERROR(VLOOKUP(I282,$K$5:$M$7,3,FALSE),0)","v":0},null,null,null,{"$f":"J282*K282","v":0}]
[null,null,"TASK 2",null,null,null,null,"P",null,null,{"$f":"IFERROR(VLOOKUP(I283,$K$5:$M$7,3,FALSE),0)","v":0},null,null,null,0]
[null,null,"TASK 3",null,null,null,null,"O",null,null,{"$f":"IFERROR(VLOOKUP(I284,$K$5:$M$7,3,FALSE),0)","v":0},null,null,null,0]
[null,null,"TASK 4",null,null,null,null,"X",null,null,{"$f":"IFERROR(VLOOKUP(I285,$K$5:$M$7,3,FALSE),0)","v":0},null,null,null,0]
[null,null,"TASK 5",null,null,null,null,"X",null,null,{"$f":"IFERROR(VLOOKUP(I286,$K$5:$M$7,3,FALSE),0)","v":0},null,null,null,0]
[null,null,"TASK 6",null,null,null,null,null,"CSC",1,8.5,null,null,null,8.5]
[null,"PROCESS 5"]
[null,null,null,null,null,null,null,null,null,null,null,null,null,null,null,"Notes"]
[null,null,"TASK 1",null,null,null,null,"X","CSC",2,8.5,null,null,null,{"$f":"J290*K290","v":17}]
[null,null,"TASK 2",null,null,null,null,null,null,null,{"$f":"IFERROR(VLOOKUP(I291,$K$5:$M$7,3,FALSE),0)","v":0},null,null,null,{"$f":"J291*K291","v":0}]
[null,null,"TASK 3",null,null,null,null,null,null,null,{"$f":"IFERROR(VLOOKUP(I292,$K$5:$M$7,3,FALSE),0)","v":0},null,null,null,{"$f":"J292*K292","v":0}]
[null,null,"TASK 4",null,null,null,null,null,null,null,{"$f":"IFERROR(VLOOKUP(I293,$K$5:$M$7,3,FALSE),0)","v":0}]
[null,null,"TASK 5",null,null,null,null,null,null,null,{"$f":"IFERROR(VLOOKUP(I294,$K$5:$M$7,3,FALSE),0)","v":0}]
[null,null,null,null,null,null,null,{"$f":"SUM(O282:O295)+H279","v":26.5},null,null,{"$f":"IFERROR(VLOOKUP(I295,$K$5:$M$7,3,FALSE),0)","v":0},null,null,null,{"$f":"J295*K295","v":0}]